[Event "FIDE World Cup O10-A 2024"]
[Site "Batumi"]
[Date "2024.06.29"]
[Round "7.8"]
[White "Kalinichenko, German Yu"]
[Black "Tsulaia, Giorgi"]
[Result "1-0"]
[ECO "B80"]
[WhiteElo "1634"]
[BlackElo "1646"]
[Annotator "NA RC"]
[PlyCount "145"]
[EventDate "2024.06.23"]
[EventType "swiss"]
[EventCountry "GEO"]
[SourceTitle "playchess.com"]
[Source "ChessBase"]
[SourceQuality "1"]
[TimeControl "5400+30"]

1. e4 {[%emt 0:00:03]} c5 {[%emt 0:00:07]} 2. Nf3 {[%emt 0:00:13]} e6 {[%emt 0:00:11]} 3. d4 {[%emt 0:00:06]} cxd4 {[%emt 0:00:04]} 4. Nxd4 {[%emt 0:00:08]} Nc6 {[%emt 0:00:06]} 5. Nc3 {[%emt 0:00:06]} Qc7 {[%emt 0:00:06]} 6. g3 {[%emt 0:00:18]} a6 {[%emt 0:00:11]} 7. Bg2 {[%emt 0:00:12]} Nf6 {[%emt 0:00:34]} 8. O-O {[%emt 0:00:58]} Be7 {[%emt 0:00:26]} 9. Re1 {[%emt 0:00:37]} d6 {[%emt 0:17:05]} 10. Nxc6 {[%emt 0:00:47]} bxc6 {[%emt 0:00:11]} 11. e5 {[%emt 0:00:03]} dxe5 {[%emt 0:01:36]} 12. Rxe5 {[%emt 0:00:14]} O-O {[%emt 0:00:15]} 13. Bf4 {[%emt 0:01:02]} Qb7 {[%emt 0:11:51]} 14. Qf3 {[%emt 0:06:07]} Bd7 {[%emt 0:08:57]} 15. Ree1 {[%emt 0:00:48]} Nd5 {[%emt 0:05:37]} 16. Nxd5 {[%emt 0:00:09]} cxd5 {[%emt 0:00:06]} 17. Qb3 {[%emt 0:00:12]} Qxb3 {[%emt 0:01:03]} 18. axb3 {[%emt 0:00:08]} Bf6 {[%emt 0:06:28]} 19. Be5 {[%emt 0:01:14]} Bxe5 {[%emt 0:01:29]} 20. Rxe5 {[%emt 0:00:06]} Rac8 {[%emt 0:01:58]} 21. c3 {[%emt 0:00:13]} Rb8 {[%emt 0:02:40]} 22. b4 {[%emt 0:00:14]} Bb5 {[%emt 0:00:42]} 23. Bf1 {[%emt 0:00:18]} Bxf1 {[%emt 0:01:12]} 24. Kxf1 {[%emt 0:00:08]} Ra8 {[%emt 0:00:17]} 25. Ree1 {[%emt 0:00:25]} Rfb8 {[%emt 0:00:51]} 26. Ra5 {[%emt 0:00:07]} Kf8 {[%emt 0:03:09]} 27. Rea1 {[%emt 0:00:17]} Rb6 {[%emt 0:01:53]} 28. b5 {[%emt 0:00:09]} Rab8 {[%emt 0:01:33]} 29. bxa6 {[%emt 0:00:44]} Rxb2 {[%emt 0:00:28]} 30. Rc5 {[%emt 0:00:14]} Rb1+ {[%emt 0:00:59]} 31. Rxb1 {[%emt 0:00:12]} Rxb1+ {[%emt 0:00:05]} 32. Ke2 {[%emt 0:00:04]} Ra1 {[%emt 0:00:06]} 33. Rc8+ {[%emt 0:00:09]} Ke7 {[%emt 0:00:13]} 34. Rc7+ {[%emt 0:00:06]} Kf6 {[%emt 0:01:43]} 35. a7 {[%emt 0:00:07]} e5 {[%emt 0:02:03]} 36. Kd2 {[%emt 0:00:36]} Ke6 {[%emt 0:02:20]} 37. Kc2 {[%emt 0:00:07]} d4 {[%emt 0:04:49]} 38. cxd4 {[%emt 1:31:49]} exd4 {[%emt 0:00:42]} 39. Kd3 {[%emt 0:00:00]} Ra4 {[%emt 0:00:34]} 40. g4 {[%emt 0:00:00]} h6 {[%emt 0:02:46]} 41. h4 {[%emt 0:00:00]} Kf6 {[%emt 0:01:30]} 42. Ke4 {[%emt 0:00:00]} Ke6 {[%emt 0:00:54]} 43. f4 {[%emt 0:00:00]} d3+ {[%emt 0:01:09]} 44. Kxd3 {[%emt 0:00:00]} Kf6 {[%emt 0:00:21]} 45. Kc3 {[%emt 0:00:00]} Ke6 {[%emt 0:00:20]} 46. Kb3 {[%emt 0:00:00]} Ra1 {[%emt 0:00:05]} 47. Kc4 {[%emt 0:00:00]} g6 {[%emt 0:01:50]} 48. Kb5 {[%emt 0:00:00]} h5 {[%emt 0:02:47]} 49. gxh5 {[%emt 0:00:00]} gxh5 {[%emt 0:00:08]} 50. Kb6 {[%emt 0:00:00]} f5 {[%emt 0:01:03]} 51. Kb7 {[%emt 0:00:00]} Rb1+ {[%emt 0:00:16]} 52. Kc8 {[%emt 0:00:00]} Ra1 {[%emt 0:01:49]} 53. Kb8 {[%emt 0:00:00]} Kd6 {[%emt 0:00:59]} 54. Rb7 {[%emt 0:00:00]} Kd5 {[%emt 0:01:07]} 55. a8=Q {[%emt 0:00:00]} Rxa8+ {[%emt 0:00:13]} 56. Kxa8 {[%emt 0:00:00]} Ke4 {[%emt 0:00:06]} 57. Rh7 {[%emt 0:00:00]} Kxf4 {[%emt 0:00:04]} 58. Rxh5 {[%emt 0:00:00]} Kg4 {[%emt 0:00:04]} 59. Rh8 {[%emt 0:00:00]} f4 {[%emt 0:00:03]} 60. h5 {[%emt 0:00:00]} f3 {[%emt 0:00:07]} 61. h6 {[%emt 0:00:00]} f2 {[%emt 0:00:05]} 62. h7 {[%emt 0:12:00]} f1=Q {[%emt 0:00:15]} 63. Rg8+ {[%emt 0:00:00]} Kf3 {[%emt 0:00:12]} 64. Rf8+ {[%emt 0:00:00]} Kg2 {[%emt 0:00:07]} 65. Rxf1 {[%emt 0:00:00]} Kxf1 {[%emt 0:00:06]} 66. h8=Q {[%emt 0:00:00]} Ke2 {[%emt 0:00:07]} 67. Qc3 {[%emt 0:00:00]} Kf2 {[%emt 0:00:03]} 68. Kb7 {[%emt 0:00:00]} Ke2 {[%emt 0:00:05]} 69. Kc6 {[%emt 0:00:00]} Kf2 {[%emt 0:00:02]} 70. Kd5 {[%emt 0:00:00]} Kg2 {[%emt 0:00:05]} 71. Ke4 {[%emt 0:00:00]} Kh2 {[%emt 0:00:09]} 72. Qg7 {[%emt 0:00:00]} Kh3 {[%emt 0:00:16]} 73. Kf3 {[%emt 0:00:00]} 1-0

[Event "FIDE World Cup O10-A 2024"]
[Site "Batumi"]
[Date "2024.06.29"]
[Round "7.9"]
[White "Obado, Sean Adrich"]
[Black "Jakhaia, Andria"]
[Result "0-1"]
[ECO "B22"]
[WhiteElo "1631"]
[BlackElo "1652"]
[Annotator "NA RC"]
[PlyCount "88"]
[EventDate "2024.06.23"]
[EventType "swiss"]
[EventCountry "GEO"]
[SourceTitle "playchess.com"]
[Source "ChessBase"]
[SourceQuality "1"]
[TimeControl "5400+30"]

1. e4 {[%emt 0:01:11]} c5 {[%emt 0:00:30]} 2. c3 {[%emt 0:00:05]} e5 {[%emt 0:00:06]} 3. Nf3 {[%emt 0:00:11]} Nc6 {[%emt 0:00:08]} 4. Bb5 {[%emt 0:00:10]} a6 {[%emt 0:00:09]} 5. Ba4 {[%emt 0:01:36]} b5 {[%emt 0:04:40]} 6. Bc2 {[%emt 0:00:11]} Qc7 {[%emt 0:01:01]} 7. d3 {[%emt 0:00:52]} Bb7 {[%emt 0:02:25]} 8. Be3 {[%emt 0:01:00]} Rc8 {[%emt 0:01:31]} 9. O-O {[%emt 0:06:49]} Nf6 {[%emt 0:03:47]} 10. h3 {[%emt 0:01:44]} d6 {[%emt 0:02:50]} 11. Nh4 {[%emt 0:03:45]} g6 {[%emt 0:00:23]} 12. f4 {[%emt 0:03:33]} Bg7 {[%emt 0:00:53]} 13. f5 {[%emt 0:03:24]} O-O {[%emt 0:01:51]} 14. g4 {[%emt 0:01:41]} Nd8 {[%emt 0:12:01]} 15. Qe1 {[%emt 0:04:57]} d5 {[%emt 0:01:04]} 16. g5 {[%emt 0:26:56]} Nd7 {[%emt 0:00:51]} 17. Nd2 {[%emt 0:10:54]} c4 {[%emt 0:09:30]} 18. exd5 {[%emt 0:05:40]} cxd3 {[%emt 0:02:02]} 19. Bxd3 {[%emt 0:01:33]} Bxd5 {[%emt 0:00:05]} 20. Be4 {[%emt 0:06:40]} Qc6 {[%emt 0:21:00]} 21. Bf3 {[%emt 0:02:23]} e4 {[%emt 0:03:12]} 22. Bg2 {[%emt 0:00:55]} Be5 {[%emt 0:00:50]} 23. Bd4 {[%emt 0:03:34]} Re8 {[%emt 0:04:18]} 24. Rc1 {[%emt 0:01:17]} Qd6 {[%emt 0:01:51]} 25. Bxe5 {[%emt 0:01:55]} Nxe5 {[%emt 0:00:45]} 26. Nxe4 {[%emt 0:03:29]} Bxe4 {[%emt 0:00:33]} 27. Qxe4 {[%emt 0:01:01]} Ndc6 {[%emt 0:01:55]} 28. Qd5 {[%emt 0:01:06]} Qc7 {[%emt 0:00:53]} 29. fxg6 {[%emt 0:02:26]} hxg6 {[%emt 0:00:19]} 30. Rf6 {[%emt 0:01:13]} Rcd8 {[%emt 0:01:14]} 31. Qb3 {[%emt 0:02:56]} Na5 {[%emt 0:02:08]} 32. Qc2 {[%emt 0:00:28]} Nd3 {[%emt 0:00:50]} 33. Rcf1 {[%emt 0:00:29]} Qc5+ {[%emt 0:00:52]} 34. Kh1 {[%emt 0:00:35]} Qxg5 {[%emt 0:00:21]} 35. Rxa6 {[%emt 0:00:45]} Nc4 {[%emt 0:01:41]} 36. Nf3 {[%emt 0:00:30]} Qg3 {[%emt 0:00:27]} 37. Nd4 {[%emt 0:00:30]} Ne3 {[%emt 0:00:16]} 38. Rf3 {[%emt 0:00:34]} Qe1+ {[%emt 0:00:25]} 39. Rf1 {[%emt 0:00:16]} Nxc2 {[%emt 0:00:47]} 40. Rxe1 {[%emt 0:00:08]} Rxe1+ {[%emt 0:00:21]} 41. Kh2 {[%emt 0:00:05]} Nxd4 {[%emt 0:00:12]} 42. cxd4 {[%emt 0:00:01]} Rxd4 {[%emt 0:00:24]} 43. Rb6 {[%emt 0:00:11]} b4 {[%emt 0:00:38]} 44. Rb8+ {[%emt 0:01:09]} Kg7 {[%emt 0:20:31]} 0-1

[Event "FIDE World Cup O10-A 2024"]
[Site "Batumi"]
[Date "2024.06.29"]
[Round "7.10"]
[White "TURKI, YOUSEF HATTAN A"]
[Black "Wee, Yu Xi Lyndon"]
[Result "1-0"]
[ECO "D38"]
[WhiteElo "1401"]
[BlackElo "1408"]
[Annotator "NA RC"]
[PlyCount "85"]
[EventDate "2024.06.23"]
[EventType "swiss"]
[EventCountry "GEO"]
[SourceTitle "playchess.com"]
[Source "ChessBase"]
[SourceQuality "1"]
[TimeControl "5400+30"]

1. d4 {[%emt 0:00:02]} d5 {[%emt 0:00:26]} 2. c4 {[%emt 0:00:01]} e6 {[%emt 0:00:17]} 3. Nc3 {[%emt 0:00:04]} Nf6 {[%emt 0:00:51]} 4. Nf3 {[%emt 0:00:10]} Bb4 {[%emt 0:00:20]} 5. Bg5 {[%emt 0:00:07]} h6 {[%emt 0:00:21]} 6. Bxf6 {[%emt 0:00:10]} Qxf6 {[%emt 0:00:23]} 7. Rc1 {[%emt 0:00:11]} Nc6 {[%emt 0:00:36]} 8. e3 {[%emt 0:00:09]} O-O {[%emt 0:01:23]} 9. Qb3 {[%emt 0:01:02]} Rd8 {[%emt 0:01:36]} 10. Bd3 {[%emt 0:00:27]} dxc4 {[%emt 0:01:54]} 11. Bxc4 {[%emt 0:00:13]} b6 {[%emt 0:00:27]} 12. O-O {[%emt 0:00:45]} Bb7 {[%emt 0:01:58]} 13. Ne4 {[%emt 0:02:49]} Qg6 {[%emt 1:26:28]} 14. Bd3 {[%emt 0:02:37]} f5 {[%emt 0:00:00]} 15. Ng3 {[%emt 0:03:13]} Be7 {[%emt 0:00:00]} 16. Bxf5 {[%emt 0:13:17]} Qf6 {[%emt 0:00:00]} 17. Bxe6+ {[%emt 1:13:43]} Kh8 {[%emt 0:00:00]} 18. d5 {[%emt 0:00:00]} Na5 {[%emt 0:00:00]} 19. Qd3 {[%emt 0:00:00]} c6 {[%emt 0:00:00]} 20. Nd4 {[%emt 0:00:00]} cxd5 {[%emt 0:00:00]} 21. Ngf5 {[%emt 0:00:00]} Bc5 {[%emt 0:00:00]} 22. b4 {[%emt 0:00:00]} Bxd4 {[%emt 0:00:00]} 23. Nxd4 {[%emt 0:00:00]} Nc4 {[%emt 0:00:00]} 24. Bh3 {[%emt 0:00:00]} Ne5 {[%emt 0:00:00]} 25. Qe2 {[%emt 0:00:00]} Nc6 {[%emt 0:00:00]} 26. Ne6 {[%emt 0:00:00]} Re8 {[%emt 0:00:00]} 27. Nc7 {[%emt 0:00:00]} Nxb4 {[%emt 0:00:00]} 28. Nxa8 {[%emt 0:00:00]} Ba6 {[%emt 0:00:00]} 29. Qd2 {[%emt 0:00:00]} Rxa8 {[%emt 0:00:00]} 30. Qxb4 {[%emt 0:00:00]} Bxf1 {[%emt 0:00:00]} 31. Rxf1 {[%emt 0:00:00]} a5 {[%emt 0:00:00]} 32. Qb5 {[%emt 0:00:00]} d4 {[%emt 0:00:00]} 33. exd4 {[%emt 0:00:00]} Qxd4 {[%emt 0:00:00]} 34. Qc6 {[%emt 0:00:00]} Rd8 {[%emt 0:00:00]} 35. Qg6 {[%emt 0:00:00]} Qa4 {[%emt 0:00:00]} 36. Bf5 {[%emt 0:00:00]} Kg8 {[%emt 0:00:00]} 37. Qh7+ {[%emt 0:00:00]} Kf7 {[%emt 0:00:00]} 38. Bg6+ {[%emt 0:00:00]} Kf6 {[%emt 0:00:00]} 39. Bc2 {[%emt 0:00:00]} Qxa2 {[%emt 0:00:00]} 40. Qg6+ {[%emt 0:00:00]} Ke5 {[%emt 0:00:00]} 41. Re1+ {[%emt 0:00:00]} Kd5 {[%emt 0:00:00]} 42. Rd1+ {[%emt 0:00:00]} Kc4 {[%emt 0:00:00]} 43. Qf7+ {[%emt 0:13:00]} 1-0

[Event "FIDE World Cup O10-A 2024"]
[Site "Batumi"]
[Date "2024.06.29"]
[Round "7.11"]
[White "Macosay Lopez, Julio David"]
[Black "Dien James"]
[Result "1-0"]
[ECO "B01"]
[WhiteElo "1607"]
[BlackElo "1419"]
[Annotator "NA RC"]
[PlyCount "53"]
[EventDate "2024.06.23"]
[EventType "swiss"]
[EventCountry "GEO"]
[SourceTitle "playchess.com"]
[Source "ChessBase"]
[SourceQuality "1"]
[TimeControl "5400+30"]

1. e4 {[%emt 0:00:13]} d5 {[%emt 0:00:24]} 2. exd5 {[%emt 0:00:22]} Qxd5 {[%emt 0:00:17]} 3. Nc3 {[%emt 0:00:45]} Qd6 {[%emt 1:31:19]} 4. d4 {[%emt 0:00:16]} Nf6 {[%emt 0:00:00]} 5. Nf3 {[%emt 0:00:15]} Nc6 {[%emt 0:00:00]} 6. Be3 {[%emt 0:01:01]} Bg4 {[%emt 0:00:00]} 7. d5 {[%emt 0:03:03]} Ne5 {[%emt 0:00:00]} 8. Bb5+ {[%emt 0:01:23]} Ned7 {[%emt 0:00:00]} 9. h3 {[%emt 0:00:26]} Bxf3 {[%emt 0:00:00]} 10. Qxf3 {[%emt 0:00:43]} O-O-O {[%emt 0:00:00]} 11. O-O-O {[%emt 0:04:06]} Kb8 {[%emt 0:00:00]} 12. g4 {[%emt 0:03:46]} e6 {[%emt 0:00:00]} 13. dxe6 {[%emt 0:05:14]} Qxe6 {[%emt 0:00:00]} 14. Rhe1 {[%emt 0:02:17]} b6 {[%emt 0:00:00]} 15. Ba6 {[%emt 0:02:26]} c6 {[%emt 0:00:00]} 16. Bf4+ {[%emt 0:04:35]} Qe5 {[%emt 0:00:00]} 17. Bxe5+ {[%emt 0:01:31]} Nxe5 {[%emt 0:00:00]} 18. Rxd8+ {[%emt 0:00:05]} Kc7 {[%emt 0:00:00]} 19. Rc8+ {[%emt 0:00:09]} Kd6 {[%emt 0:00:00]} 20. Rxe5 {[%emt 0:00:19]} Kxe5 {[%emt 0:00:00]} 21. Qf5+ {[%emt 0:00:22]} Kd6 {[%emt 0:00:00]} 22. Rd8+ {[%emt 0:00:13]} Ke7 {[%emt 0:00:00]} 23. Ra8 {[%emt 0:00:36]} g6 {[%emt 0:00:00]} 24. Rxa7+ {[%emt 0:00:07]} Nd7 {[%emt 0:00:00]} 25. Qxd7+ {[%emt 0:00:41]} Kf6 {[%emt 0:00:00]} 26. Ne4+ {[%emt 0:00:06]} Kg7 {[%emt 0:00:00]} 27. g5 {[%emt 0:00:10]} 1-0